[Event "CZE-ch 2020"]
[Site "Pilsen"]
[Date "2020.08.27"]
[Round "5.3"]
[White "Stocek, Jiri"]
[Black "Hracek, Zbynek"]
[Result "1/2-1/2"]
[ECO "D41"]
[WhiteElo "2595"]
[BlackElo "2563"]
[Annotator "ChessBase"]
[PlyCount "89"]
[EventDate "2020.08.23"]
[EventType "swiss"]
[EventCountry "CZE"]
[SourceTitle "playchess.com"]
[Source "ChessBase"]
[SourceQuality "1"]
[TimeControl "40/5400+30:1800+30"]

1. Nf3 {[%emt 0:01:20]} d5 {[%emt 0:00:00]} 2. d4 {[%emt 0:01:08]} Nf6 {[%emt 0:00:03]} 3. c4 {[%emt 0:00:28]} e6 {[%emt 0:00:06]} 4. Nc3 {[%emt 0:01:15]} c5 {[%emt 0:01:29]} 5. cxd5 {[%emt 0:02:19]} exd5 {[%emt 0:00:24]} 6. Bg5 {[%emt 0:08:53]} Be6 {[%emt 0:00:17]} 7. dxc5 {[%emt 0:06:08]} Bxc5 {[%emt 0:00:10]} 8. e3 {[%emt 0:00:04]} O-O {[%emt 0:00:45]} 9. Bb5 {[%emt 0:02:46]} h6 {[%emt 0:03:46]} 10. Bxf6 {[%emt 0:01:42]} Qxf6 {[%emt 0:00:02]} 11. O-O {[%emt 0:00:52]} Rd8 {[%emt 0:00:30]} 12. Rc1 {[%emt 0:03:55]} Bb6 {[%emt 0:12:54]} 13. Nd4 {[%emt 0:05:47]} Bxd4 {[%emt 0:02:08]} 14. Qxd4 {[%emt 0:10:44]} Qxd4 {[%emt 0:00:15]} 15. exd4 {[%emt 0:00:05]} Bd7 {[%emt 0:12:57]} 16. Be2 {[%emt 0:03:33]} Nc6 {[%emt 0:00:48]} 17. Rfd1 {[%emt 0:00:07]} Ne7 {[%emt 0:05:35]} 18. f3 {[%emt 0:04:40]} Rac8 {[%emt 0:00:35]} 19. Kf2 {[%emt 0:00:12]} Kf8 {[%emt 0:11:46]} 20. g3 {[%emt 0:07:11]} Rc6 {[%emt 0:01:04]} 21. Nb1 {[%emt 0:02:42]} Rdc8 {[%emt 0:03:54]} 22. Rxc6 {[%emt 0:00:08]} Rxc6 {[%emt 0:00:06]} 23. Nc3 {[%emt 0:01:40]} Be6 {[%emt 0:04:09]} 24. Rd2 {[%emt 0:04:47]} g5 {[%emt 0:02:37]} 25. Bd3 {[%emt 0:03:02]} Bd7 {[%emt 0:03:19]} 26. Bc2 {[%emt 0:07:27]} Rd6 {[%emt 0:07:55]} 27. Bb3 {[%emt 0:01:04]} Bc6 {[%emt 0:00:32]} 28. Rd1 {[%emt 0:01:15]} Bd7 {[%emt 0:00:15]} 29. Re1 {[%emt 0:00:57]} Bc6 {[%emt 0:00:22]} 30. Re5 {[%emt 0:02:26]} Ng6 {[%emt 0:00:34]} 31. Re2 {[%emt 0:01:04]} Ne7 {[%emt 0:00:08]} 32. Rd2 {[%emt 0:02:26]} Bd7 {[%emt 0:01:05]} 33. Nd1 {[%emt 0:00:30]} Be6 {[%emt 0:02:39]} 34. Ne3 {[%emt 0:00:54]} Bd7 {[%emt 0:07:50]} 35. Rc2 {[%emt 0:00:51]} Rc6 {[%emt 0:01:09]} 36. Rxc6 {[%emt 0:01:23]} Bxc6 {[%emt 0:00:02]} 37. Ke2 {[%emt 0:01:46]} Kg7 {[%emt 0:03:04]} 38. Bc2 {[%emt 0:01:19]} Bd7 {[%emt 0:01:45]} 39. Kd2 {[%emt 0:00:22]} Kf6 {[%emt 0:05:36]} 40. Bb3 {[%emt 0:01:19]} Ke6 {[%emt 0:02:32]} 41. a3 {[%emt 0:35:03]} Kd6 {[%emt 0:30:46]} 42. Bc2 {[%emt 0:01:16]} b6 {[%emt 0:00:00]} 43. Bd3 {[%emt 0:00:00]} Nc6 {[%emt 0:00:00]} 44. Kc3 {[%emt 0:00:00]} Ne7 {[%emt 0:00:00]} 45. Kd2 {[%emt 0:00:00]} 1/2-1/2

[Event "CZE-ch 2020"]
[Site "Pilsen"]
[Date "2020.08.27"]
[Round "5.4"]
[White "Michalik, Peter"]
[Black "Brejnik, Gustav"]
[Result "1-0"]
[ECO "B10"]
[WhiteElo "2593"]
[BlackElo "2265"]
[Annotator "ChessBase"]
[PlyCount "75"]
[EventDate "2020.08.23"]
[EventType "swiss"]
[EventCountry "CZE"]
[SourceTitle "playchess.com"]
[Source "ChessBase"]
[SourceQuality "1"]
[TimeControl "40/5400+30:1800+30"]

1. e4 {[%emt 0:00:00]} c6 {[%emt 0:00:00]} 2. Nf3 {[%emt 0:00:00]} d5 {[%emt 0:00:00]} 3. d3 {[%emt 0:00:00]} dxe4 {[%emt 0:00:00]} 4. dxe4 {[%emt 0:00:00]} Qxd1+ {[%emt 0:00:00]} 5. Kxd1 {[%emt 0:00:00]} Nf6 {[%emt 0:00:00]} 6. Nbd2 {[%emt 0:00:04]} g6 {[%emt 0:00:16]} 7. Ne1 {[%emt 0:00:46]} Ng4 {[%emt 0:05:49]} 8. Nd3 {[%emt 0:04:26]} Nd7 {[%emt 0:00:16]} 9. h3 {[%emt 0:04:55]} Nge5 {[%emt 0:00:42]} 10. Nxe5 {[%emt 0:00:18]} Nxe5 {[%emt 0:00:02]} 11. Nc4 {[%emt 0:00:08]} Bg7 {[%emt 0:01:14]} 12. Nxe5 {[%emt 0:01:57]} Bxe5 {[%emt 0:00:11]} 13. Bc4 {[%emt 0:00:05]} b5 {[%emt 0:11:23]} 14. Bb3 {[%emt 0:01:02]} a5 {[%emt 0:00:07]} 15. a4 {[%emt 0:00:13]} O-O {[%emt 0:02:03]} 16. f4 {[%emt 0:08:30]} Rd8+ {[%emt 0:05:40]} 17. Ke2 {[%emt 0:02:13]} Bg7 {[%emt 0:00:08]} 18. e5 {[%emt 0:02:44]} g5 {[%emt 0:24:06]} 19. g3 {[%emt 0:06:41]} gxf4 {[%emt 0:06:26]} 20. gxf4 {[%emt 0:01:51]} Bf5 {[%emt 0:00:07]} 21. Be3 {[%emt 0:04:23]} e6 {[%emt 0:02:24]} 22. Bb6 {[%emt 0:10:05]} Rdc8 {[%emt 0:12:34]} 23. Ke3 {[%emt 0:06:37]} Bf8 {[%emt 0:02:15]} 24. Rhd1 {[%emt 0:17:17]} c5 {[%emt 0:11:49]} 25. axb5 {[%emt 0:00:38]} c4 {[%emt 0:00:01]} 26. Ba4 {[%emt 0:00:37]} c3 {[%emt 0:00:01]} 27. Bd4 {[%emt 0:06:57]} cxb2 {[%emt 0:00:12]} 28. Bxb2 {[%emt 0:00:05]} Bxc2 {[%emt 0:00:29]} 29. Rg1+ {[%emt 0:00:20]} Kh8 {[%emt 0:02:38]} 30. Bd4 {[%emt 0:00:26]} Bc5 {[%emt 0:02:14]} 31. Bxc5 {[%emt 0:01:43]} Rxc5 {[%emt 0:00:06]} 32. Rgc1 {[%emt 0:00:55]} Rac8 {[%emt 0:03:20]} 33. Rxc2 {[%emt 0:00:07]} Rxc2 {[%emt 0:00:04]} 34. Bxc2 {[%emt 0:00:05]} Rxc2 {[%emt 0:00:03]} 35. Kd4 {[%emt 0:01:33]} Kg7 {[%emt 0:04:04]} 36. Rxa5 {[%emt 0:00:37]} Kg6 {[%emt 0:01:31]} 37. b6 {[%emt 0:00:12]} Kf5 {[%emt 0:03:36]} 38. Ra4 {[%emt 0:00:24]} 1-0

[Event "CZE-ch 2020"]
[Site "Pilsen"]
[Date "2020.08.27"]
[Round "5.5"]
[White "Zeman, Matyas"]
[Black "Hollan, Martin"]
[Result "0-1"]
[ECO "C55"]
[WhiteElo "2250"]
[BlackElo "2346"]
[Annotator "ChessBase"]
[PlyCount "48"]
[EventDate "2020.08.23"]
[EventType "swiss"]
[EventCountry "CZE"]
[SourceTitle "playchess.com"]
[Source "ChessBase"]
[SourceQuality "1"]
[TimeControl "40/5400+30:1800+30"]

1. e4 {[%emt 0:00:00]} e5 {[%emt 0:00:00]} 2. Nf3 {[%emt 0:00:00]} Nc6 {[%emt 0:00:00]} 3. Bc4 {[%emt 0:00:00]} Nf6 {[%emt 0:00:00]} 4. d3 {[%emt 0:00:05]} Be7 {[%emt 0:00:08]} 5. O-O {[%emt 0:00:07]} O-O {[%emt 0:00:09]} 6. Re1 {[%emt 0:00:14]} d6 {[%emt 0:00:12]} 7. a4 {[%emt 0:00:12]} Kh8 {[%emt 0:02:02]} 8. c3 {[%emt 0:03:55]} Ng8 {[%emt 0:04:22]} 9. d4 {[%emt 0:10:41]} f5 {[%emt 0:09:16]} 10. exf5 {[%emt 0:04:50]} d5 {[%emt 0:04:22]} 11. Bb3 {[%emt 0:04:11]} e4 {[%emt 0:00:51]} 12. Ne5 {[%emt 0:00:04]} Bxf5 {[%emt 0:01:34]} 13. Bf4 {[%emt 0:03:49]} Nxe5 {[%emt 0:02:32]} 14. dxe5 {[%emt 0:02:01]} Be6 {[%emt 0:02:07]} 15. Bg3 {[%emt 0:02:07]} Nh6 {[%emt 0:10:07]} 16. Nd2 {[%emt 0:06:42]} Bg4 {[%emt 0:02:05]} 17. Qc2 {[%emt 0:00:58]} Nf5 {[%emt 0:05:44]} 18. Nxe4 {[%emt 0:16:44]} dxe4 {[%emt 0:00:33]} 19. Qxe4 {[%emt 0:00:13]} Bh5 {[%emt 0:09:39]} 20. f4 {[%emt 0:06:06]} Bc5+ {[%emt 0:02:28]} 21. Kh1 {[%emt 0:00:06]} Nxg3+ {[%emt 0:00:10]} 22. hxg3 {[%emt 0:00:04]} Bf2 {[%emt 0:00:20]} 23. e6 {[%emt 0:04:20]} Qe7 {[%emt 0:01:00]} 24. g4 {[%emt 0:03:03]} Qh4# 0-1

[Event "CZE-ch 2020"]
[Site "Pilsen"]
[Date "2020.08.27"]
[Round "5.6"]
[White "Paseka, Matyas"]
[Black "Sorm, Daniel"]
[Result "0-1"]
[ECO "B14"]
[WhiteElo "1959"]
[BlackElo "2343"]
[Annotator "ChessBase"]
[PlyCount "46"]
[EventDate "2020.08.23"]
[EventType "swiss"]
[EventCountry "CZE"]
[SourceTitle "playchess.com"]
[Source "ChessBase"]
[SourceQuality "1"]
[TimeControl "40/5400+30:1800+30"]

1. e4 {[%emt 0:00:00]} c6 {[%emt 0:08:45]} 2. d4 {[%emt 0:00:00]} d5 {[%emt 0:00:10]} 3. exd5 {[%emt 0:00:00]} cxd5 {[%emt 0:00:04]} 4. c4 {[%emt 0:00:01]} Nf6 {[%emt 0:00:26]} 5. Nc3 {[%emt 0:00:09]} g6 {[%emt 0:00:06]} 6. Qb3 {[%emt 0:01:30]} Bg7 {[%emt 0:00:45]} 7. cxd5 {[%emt 0:00:34]} O-O {[%emt 0:00:40]} 8. Be2 {[%emt 0:00:23]} Nbd7 {[%emt 0:00:24]} 9. Bf3 {[%emt 0:02:25]} Nb6 {[%emt 0:00:23]} 10. a4 {[%emt 0:02:26]} a5 {[%emt 0:00:32]} 11. Bg5 {[%emt 0:04:30]} Bf5 {[%emt 0:05:40]} 12. Rd1 {[%emt 0:03:51]} Qd6 {[%emt 0:03:02]} 13. Nge2 {[%emt 0:06:39]} Qb4 {[%emt 0:04:18]} 14. Qxb4 {[%emt 0:12:17]} axb4 {[%emt 0:00:14]} 15. Bxf6 {[%emt 0:00:22]} Bxf6 {[%emt 0:07:29]} 16. Nb5 {[%emt 0:00:12]} Nxa4 {[%emt 0:03:58]} 17. O-O {[%emt 0:06:40]} Nxb2 {[%emt 0:12:59]} 18. Ra1 {[%emt 0:00:46]} Nc4 {[%emt 0:07:52]} 19. d6 {[%emt 0:05:17]} Nxd6 {[%emt 0:06:24]} 20. Nxd6 {[%emt 0:00:57]} exd6 {[%emt 0:03:37]} 21. Bd5 {[%emt 0:02:22]} Bd3 {[%emt 0:01:58]} 22. Rxa8 {[%emt 0:00:12]} Rxa8 {[%emt 0:00:09]} 23. Re1 {[%emt 0:00:16]} Bxe2 {[%emt 0:00:19]} 0-1

[Event "CZE-ch 2020"]
[Site "Pilsen"]
[Date "2020.08.27"]
[Round "5.7"]
[White "Babula, Vlastimil"]
[Black "Serrano Salvador, Eduardo"]
[Result "1-0"]
[ECO "D45"]
[WhiteElo "2571"]
[BlackElo "2299"]
[Annotator "ChessBase"]
[PlyCount "107"]
[EventDate "2020.08.23"]
[EventType "swiss"]
[EventCountry "CZE"]
[SourceTitle "playchess.com"]
[Source "ChessBase"]
[SourceQuality "1"]
[TimeControl "40/5400+30:1800+30"]

1. d4 {[%emt 0:00:00]} d5 {[%emt 0:02:31]} 2. c4 {[%emt 0:00:00]} c6 {[%emt 0:00:10]} 3. Nf3 {[%emt 0:00:06]} Nf6 {[%emt 0:00:20]} 4. Nc3 {[%emt 0:00:18]} e6 {[%emt 0:00:09]} 5. e3 {[%emt 0:00:33]} Nbd7 {[%emt 0:00:16]} 6. Qc2 {[%emt 0:00:28]} Bd6 {[%emt 0:00:15]} 7. Be2 {[%emt 0:00:22]} O-O {[%emt 0:00:35]} 8. O-O {[%emt 0:00:20]} b6 {[%emt 0:00:51]} 9. e4 Nxe4 {[%emt 0:03:13]} 10. Nxe4 {[%emt 0:00:52]} dxe4 {[%emt 0:00:06]} 11. Qxe4 {[%emt 0:00:10]} Bb7 {[%emt 0:00:55]} 12. Bd3 {[%emt 0:01:34]} Nf6 {[%emt 0:01:31]} 13. Qh4 {[%emt 0:01:26]} c5 {[%emt 0:00:41]} 14. Rd1 {[%emt 0:00:30]} cxd4 {[%emt 0:09:05]} 15. Bg5 {[%emt 0:30:56]} h6 {[%emt 0:00:36]} 16. Bxh6 {[%emt 0:02:42]} gxh6 {[%emt 0:00:07]} 17. Qxh6 {[%emt 0:00:31]} e5 {[%emt 0:10:27]} 18. Bf5 {[%emt 0:04:59]} Be4 {[%emt 0:22:57]} 19. Qg5+ {[%emt 0:18:45]} Kh8 {[%emt 0:00:08]} 20. Qh6+ {[%emt 0:00:09]} Kg8 {[%emt 0:00:06]} 21. Qg5+ {[%emt 0:00:05]} Kh8 {[%emt 0:00:05]} 22. Qh4+ {[%emt 0:00:12]} Kg7 {[%emt 0:00:05]} 23. Bxe4 {[%emt 0:00:16]} Nxe4 {[%emt 0:00:06]} 24. Qg4+ {[%emt 0:00:54]} Kh6 {[%emt 0:01:51]} 25. Qxe4 {[%emt 0:00:49]} f5 {[%emt 0:00:07]} 26. Qd5 {[%emt 0:07:02]} Qf6 {[%emt 0:00:17]} 27. Re1 {[%emt 0:01:36]} Rfe8 {[%emt 0:02:12]} 28. Rad1 {[%emt 0:10:07]} Rad8 {[%emt 0:01:11]} 29. Qb5 {[%emt 0:01:33]} Re7 {[%emt 0:02:26]} 30. g3 {[%emt 0:01:03]} Bc7 {[%emt 0:01:26]} 31. Nh4 {[%emt 0:00:48]} Rf8 {[%emt 0:01:12]} 32. Qd5 {[%emt 0:02:04]} Rd8 {[%emt 0:01:57]} 33. Qb5 {[%emt 0:00:40]} Rf7 {[%emt 0:02:12]} 34. Nf3 {[%emt 0:02:09]} Re7 {[%emt 0:03:38]} 35. Nh4 {[%emt 0:02:42]} Rf7 {[%emt 0:00:22]} 36. Qb3 {[%emt 0:05:18]} e4 {[%emt 0:02:08]} 37. Qc2 {[%emt 0:02:37]} Kg7 {[%emt 0:06:36]} 38. f3 {[%emt 0:00:44]} e3 {[%emt 0:02:51]} 39. f4 {[%emt 0:00:41]} Bd6 {[%emt 0:12:27]} 40. a3 {[%emt 0:02:29]} a5 {[%emt 0:02:36]} 41. Nf3 {[%emt 0:31:26]} Bc5 {[%emt 0:37:04]} 42. Ne5 {[%emt 0:00:00]} Rc7 {[%emt 0:00:00]} 43. Rd3 {[%emt 0:00:00]} Rdc8 {[%emt 0:00:00]} 44. Red1 {[%emt 0:00:00]} Qe6 {[%emt 0:00:00]} 45. Qe2 {[%emt 0:00:00]} Kh6 {[%emt 0:00:00]} 46. b4 {[%emt 0:00:00]} axb4 {[%emt 0:00:00]} 47. axb4 {[%emt 0:00:00]} Bxb4 {[%emt 0:00:00]} 48. Rxd4 {[%emt 0:00:00]} Bc5 {[%emt 0:00:00]} 49. Rd5 {[%emt 0:00:00]} Ra7 {[%emt 0:00:00]} 50. Nd7 {[%emt 0:00:00]} Rxd7 {[%emt 0:00:00]} 51. Rxd7 {[%emt 0:00:00]} Ra8 {[%emt 0:00:00]} 52. Kg2 {[%emt 0:00:00]} Qe4+ {[%emt 0:00:00]} 53. Kh3 {[%emt 0:00:00]} Rh8 {[%emt 0:00:00]} 54. Qb2 {[%emt 0:00:33]} 1-0

[Event "CZE-ch 2020"]
[Site "Pilsen"]
[Date "2020.08.27"]
[Round "5.8"]
[White "Rabatin, Jakub"]
[Black "Malinovsky, Karel"]
[Result "1/2-1/2"]
[ECO "C95"]
[WhiteElo "2291"]
[BlackElo "2474"]
[Annotator "ChessBase"]
[PlyCount "61"]
[EventDate "2020.08.23"]
[EventType "swiss"]
[EventCountry "CZE"]
[SourceTitle "playchess.com"]
[Source "ChessBase"]
[SourceQuality "1"]
[TimeControl "40/5400+30:1800+30"]

1. e4 {[%emt 0:00:00]} e5 {[%emt 0:00:00]} 2. Nf3 {[%emt 0:00:00]} Nc6 {[%emt 0:00:00]} 3. Bb5 {[%emt 0:00:00]} a6 {[%emt 0:00:00]} 4. Ba4 {[%emt 0:00:00]} Nf6 {[%emt 0:00:00]} 5. O-O {[%emt 0:00:00]} Be7 {[%emt 0:00:01]} 6. Re1 {[%emt 0:00:00]} b5 {[%emt 0:00:06]} 7. Bb3 {[%emt 0:00:00]} d6 {[%emt 0:00:07]} 8. c3 {[%emt 0:00:00]} O-O {[%emt 0:00:07]} 9. h3 {[%emt 0:00:00]} Nb8 {[%emt 0:00:40]} 10. d4 {[%emt 0:00:07]} Nbd7 {[%emt 0:00:06]} 11. Nbd2 {[%emt 0:01:03]} Bb7 {[%emt 0:00:24]} 12. Bc2 {[%emt 0:00:27]} Re8 {[%emt 0:00:32]} 13. Nf1 {[%emt 0:00:09]} Bf8 {[%emt 0:00:08]} 14. Ng3 {[%emt 0:00:05]} g6 {[%emt 0:00:19]} 15. a4 {[%emt 0:01:05]} Bg7 {[%emt 0:00:50]} 16. Bd3 {[%emt 0:15:42]} exd4 {[%emt 0:03:49]} 17. cxd4 {[%emt 0:01:03]} c5 {[%emt 0:00:19]} 18. axb5 {[%emt 0:07:19]} axb5 {[%emt 0:00:36]} 19. Rxa8 {[%emt 0:00:06]} Bxa8 {[%emt 0:00:12]} 20. Bxb5 {[%emt 0:30:15]} cxd4 {[%emt 0:05:47]} 21. Nxd4 {[%emt 0:01:02]} Nxe4 {[%emt 0:06:17]} 22. Nxe4 {[%emt 0:01:31]} Rxe4 {[%emt 0:04:12]} 23. Rxe4 {[%emt 0:04:15]} Bxe4 {[%emt 0:00:08]} 24. Be3 {[%emt 0:00:12]} Nb6 {[%emt 0:09:00]} 25. f3 {[%emt 0:08:03]} Bb7 {[%emt 0:01:38]} 26. Bf2 {[%emt 0:04:07]} Qg5 {[%emt 0:08:43]} 27. Bc6 {[%emt 0:04:37]} Bxc6 {[%emt 0:12:57]} 28. Nxc6 {[%emt 0:00:07]} Nc4 {[%emt 0:00:12]} 29. h4 {[%emt 0:05:34]} Qb5 {[%emt 0:01:34]} 30. b3 {[%emt 0:00:36]} Qxc6 {[%emt 0:02:00]} 31. bxc4 {[%emt 0:00:06]} 1/2-1/2

[Event "CZE-ch 2020"]
[Site "Pilsen"]
[Date "2020.08.27"]
[Round "5.9"]
[White "Finek, Vaclav"]
[Black "Stalmach, Richard"]
[Result "1-0"]
[ECO "D70"]
[WhiteElo "2344"]
[BlackElo "2273"]
[Annotator "ChessBase"]
[PlyCount "81"]
[EventDate "2020.08.23"]
[EventType "swiss"]
[EventCountry "CZE"]
[SourceTitle "playchess.com"]
[Source "ChessBase"]
[SourceQuality "1"]
[TimeControl "40/5400+30:1800+30"]

1. d4 {[%emt 0:00:00]} Nf6 {[%emt 0:00:04]} 2. c4 {[%emt 0:00:00]} g6 {[%emt 0:00:11]} 3. Nf3 {[%emt 0:00:00]} Bg7 {[%emt 0:00:05]} 4. g3 {[%emt 0:00:00]} O-O {[%emt 0:00:08]} 5. Bg2 {[%emt 0:00:00]} d6 {[%emt 0:00:05]} 6. O-O {[%emt 0:00:00]} c6 {[%emt 0:00:06]} 7. Nc3 {[%emt 0:00:00]} Qb6 {[%emt 0:00:11]} 8. Re1 {[%emt 0:02:17]} Qa6 {[%emt 0:01:22]} 9. Nd2 {[%emt 0:08:32]} Nfd7 {[%emt 0:09:58]} 10. e3 {[%emt 0:03:38]} e5 {[%emt 0:01:21]} 11. Nce4 {[%emt 0:10:20]} c5 {[%emt 0:10:19]} 12. Nb3 {[%emt 0:08:15]} cxd4 {[%emt 0:10:24]} 13. exd4 {[%emt 0:00:12]} Nc6 {[%emt 0:00:44]} 14. d5 {[%emt 0:05:37]} Ne7 {[%emt 0:10:45]} 15. Bf1 {[%emt 0:01:26]} Nf6 {[%emt 0:06:44]} 16. c5 {[%emt 0:19:46]} Qa4 {[%emt 0:00:55]} 17. Nxd6 {[%emt 0:00:20]} Nfxd5 {[%emt 0:06:21]} 18. Bb5 {[%emt 0:04:34]} Qg4 {[%emt 0:00:04]} 19. Qxg4 {[%emt 0:03:49]} Bxg4 {[%emt 0:00:02]} 20. Nxb7 {[%emt 0:00:12]} e4 {[%emt 0:03:50]} 21. Nd6 {[%emt 0:01:59]} f5 {[%emt 0:00:06]} 22. Bc4 {[%emt 0:02:10]} Kh8 {[%emt 0:01:25]} 23. h3 {[%emt 0:03:43]} Bxh3 {[%emt 0:04:12]} 24. Rd1 {[%emt 0:01:00]} Nb4 {[%emt 0:00:02]} 25. Nf7+ {[%emt 0:01:29]} Rxf7 {[%emt 0:00:01]} 26. Bxf7 {[%emt 0:00:01]} Nd3 {[%emt 0:00:12]} 27. Bg5 {[%emt 0:06:14]} Nc6 {[%emt 0:01:30]} 28. Bd5 {[%emt 0:00:22]} Rc8 {[%emt 0:00:03]} 29. Kh2 {[%emt 0:03:09]} Bg4 {[%emt 0:01:21]} 30. f3 {[%emt 0:00:04]} Nce5 {[%emt 0:01:37]} 31. Rxd3 {[%emt 0:03:03]} Bxf3 {[%emt 0:04:19]} 32. Rc3 {[%emt 0:01:40]} Ng4+ {[%emt 0:02:11]} 33. Kg1 {[%emt 0:00:37]} Bxc3 {[%emt 0:00:52]} 34. bxc3 {[%emt 0:00:06]} h6 {[%emt 0:00:43]} 35. Be7 {[%emt 0:01:16]} Ne3 {[%emt 0:00:06]} 36. Bf6+ {[%emt 0:00:52]} Kh7 {[%emt 0:00:04]} 37. Bb7 {[%emt 0:00:12]} Rf8 {[%emt 0:00:45]} 38. c6 {[%emt 0:01:54]} Nd5 {[%emt 0:00:54]} 39. Be5 {[%emt 0:00:46]} Re8 {[%emt 0:01:00]} 40. c4 {[%emt 0:00:59]} Ne7 {[%emt 0:01:34]} 41. c7 {[%emt 0:31:00]} 1-0

[Event "CZE-ch 2020"]
[Site "Pilsen"]
[Date "2020.08.27"]
[Round "5.10"]
[White "Cerveny, Petr"]
[Black "Svanda, Ondrej"]
[Result "1-0"]
[ECO "B44"]
[WhiteElo "2340"]
[BlackElo "2250"]
[Annotator "ChessBase"]
[PlyCount "39"]
[EventDate "2020.08.23"]
[EventType "swiss"]
[EventCountry "CZE"]
[SourceTitle "playchess.com"]
[Source "ChessBase"]
[SourceQuality "1"]
[TimeControl "40/5400+30:1800+30"]

1. e4 {[%emt 0:00:00]} c5 {[%emt 0:00:00]} 2. Nf3 {[%emt 0:00:00]} e6 {[%emt 0:00:00]} 3. d4 {[%emt 0:00:00]} cxd4 {[%emt 0:00:00]} 4. Nxd4 {[%emt 0:00:00]} Nc6 {[%emt 0:00:00]} 5. Nb5 {[%emt 0:00:00]} d6 {[%emt 0:00:33]} 6. c4 {[%emt 0:00:00]} Nf6 {[%emt 0:00:43]} 7. N1c3 {[%emt 0:00:03]} a6 {[%emt 0:02:04]} 8. Nd4 {[%emt 0:00:05]} Be7 {[%emt 0:08:41]} 9. Be2 {[%emt 0:00:09]} O-O {[%emt 0:00:15]} 10. O-O {[%emt 0:00:23]} Bd7 {[%emt 0:00:17]} 11. Be3 {[%emt 0:01:24]} Rc8 {[%emt 0:01:22]} 12. b3 {[%emt 0:06:11]} Qa5 {[%emt 0:08:30]} 13. Qe1 {[%emt 0:03:49]} Kh8 {[%emt 0:05:26]} 14. a4 {[%emt 0:16:26]} Nxd4 {[%emt 0:19:53]} 15. Bxd4 {[%emt 0:00:13]} Qb4 {[%emt 0:00:21]} 16. Qd2 {[%emt 0:22:26]} e5 {[%emt 0:26:52]} 17. Be3 {[%emt 0:00:31]} Bc6 {[%emt 0:00:01]} 18. a5 {[%emt 0:07:53]} Bd8 {[%emt 0:05:01]} 19. Qb2 {[%emt 0:00:31]} Nd7 {[%emt 0:03:26]} 20. Bg4 {[%emt 0:04:01]} 1-0

[Event "CZE-ch 2020"]
[Site "Pilsen"]
[Date "2020.08.27"]
[Round "5.11"]
[White "Freisler, Pavel"]
[Black "Hurdzan, Tomas"]
[Result "1/2-1/2"]
[ECO "A35"]
[WhiteElo "2249"]
[BlackElo "2325"]
[Annotator "ChessBase"]
[PlyCount "61"]
[EventDate "2020.08.23"]
[EventType "swiss"]
[EventCountry "CZE"]
[SourceTitle "playchess.com"]
[Source "ChessBase"]
[SourceQuality "1"]
[TimeControl "40/5400+30:1800+30"]

1. Nf3 {[%emt 0:03:12]} Nf6 {[%emt 0:00:00]} 2. c4 {[%emt 0:01:12]} c5 {[%emt 0:00:00]} 3. Nc3 {[%emt 0:00:38]} Nc6 {[%emt 0:00:22]} 4. g3 {[%emt 0:01:27]} d5 {[%emt 0:00:33]} 5. cxd5 {[%emt 0:05:44]} Nxd5 {[%emt 0:00:07]} 6. Bg2 {[%emt 0:00:03]} g6 {[%emt 0:01:31]} 7. Nxd5 {[%emt 0:12:01]} Qxd5 {[%emt 0:00:07]} 8. O-O {[%emt 0:00:04]} Bg7 {[%emt 0:00:09]} 9. d3 {[%emt 0:00:06]} O-O {[%emt 0:00:10]} 10. Be3 {[%emt 0:06:24]} Bd7 {[%emt 0:09:44]} 11. Nd4 {[%emt 0:24:55]} Qd6 {[%emt 0:00:59]} 12. Nxc6 {[%emt 0:02:11]} Bxc6 {[%emt 0:00:06]} 13. Bxc6 {[%emt 0:00:05]} Qxc6 {[%emt 0:00:05]} 14. Rc1 {[%emt 0:00:03]} Qe6 {[%emt 0:15:19]} 15. Bxc5 {[%emt 0:02:50]} b6 {[%emt 0:02:01]} 16. Ba3 {[%emt 0:02:38]} Qxa2 {[%emt 0:00:07]} 17. Qc2 {[%emt 0:18:32]} Qe6 {[%emt 0:02:36]} 18. e3 {[%emt 0:00:05]} Qd7 {[%emt 0:08:53]} 19. d4 {[%emt 0:05:22]} Rfc8 {[%emt 0:10:43]} 20. Qe4 {[%emt 0:01:05]} e6 {[%emt 0:00:37]} 21. b3 {[%emt 0:00:16]} h5 {[%emt 0:10:01]} 22. Rc4 {[%emt 0:01:10]} Rxc4 {[%emt 0:04:32]} 23. bxc4 {[%emt 0:00:01]} Rc8 {[%emt 0:00:07]} 24. c5 {[%emt 0:02:30]} Bf8 {[%emt 0:10:53]} 25. Rc1 {[%emt 0:01:20]} a5 {[%emt 0:05:09]} 26. Qc2 {[%emt 0:03:46]} b5 {[%emt 0:01:04]} 27. c6 {[%emt 0:00:25]} Qd5 {[%emt 0:02:49]} 28. Bxf8 {[%emt 0:00:53]} Kxf8 {[%emt 0:00:12]} 29. Qc5+ {[%emt 0:02:02]} Qxc5 {[%emt 0:00:06]} 30. Rxc5 {[%emt 0:00:07]} a4 {[%emt 0:02:38]} 31. Rxb5 {[%emt 0:01:14]} 1/2-1/2

[Event "CZE-ch 2020"]
[Site "Pilsen"]
[Date "2020.08.27"]
[Round "5.12"]
[White "Nemec, Pavel"]
[Black "Mica, Marek"]
[Result "0-1"]
[ECO "C02"]
[WhiteElo "2243"]
[BlackElo "2315"]
[Annotator "ChessBase"]
[PlyCount "86"]
[EventDate "2020.08.23"]
[EventType "swiss"]
[EventCountry "CZE"]
[SourceTitle "playchess.com"]
[Source "ChessBase"]
[SourceQuality "1"]
[TimeControl "40/5400+30:1800+30"]

1. e4 {[%emt 0:00:00]} e6 {[%emt 0:00:00]} 2. d4 {[%emt 0:00:00]} d5 {[%emt 0:00:00]} 3. e5 {[%emt 0:00:00]} c5 {[%emt 0:00:00]} 4. c3 {[%emt 0:00:00]} Nc6 {[%emt 0:00:07]} 5. Nf3 {[%emt 0:00:01]} Bd7 {[%emt 0:00:08]} 6. Be2 {[%emt 0:00:37]} Nge7 {[%emt 0:00:15]} 7. Na3 {[%emt 0:00:16]} cxd4 {[%emt 0:02:24]} 8. cxd4 {[%emt 0:00:04]} Qb6 {[%emt 0:00:51]} 9. Nc2 {[%emt 0:07:03]} Na5 {[%emt 0:02:41]} 10. h4 {[%emt 0:11:05]} Bb5 {[%emt 0:02:39]} 11. h5 {[%emt 0:00:17]} Bxe2 {[%emt 0:02:12]} 12. Qxe2 {[%emt 0:00:02]} h6 {[%emt 0:00:10]} 13. Bd2 {[%emt 0:06:18]} Qxb2 {[%emt 0:22:00]} 14. Bxa5 {[%emt 0:05:49]} Rc8 {[%emt 0:01:13]} 15. O-O {[%emt 0:00:24]} Qxc2 {[%emt 0:00:23]} 16. Qb5+ {[%emt 0:00:34]} Qc6 {[%emt 0:00:12]} 17. Qb2 {[%emt 0:00:22]} Qd7 {[%emt 0:00:52]} 18. Rab1 {[%emt 0:04:35]} Nc6 {[%emt 0:01:44]} 19. Bd2 {[%emt 0:00:07]} Rc7 {[%emt 0:00:48]} 20. Nh2 {[%emt 0:01:51]} Be7 {[%emt 0:00:28]} 21. Be3 {[%emt 0:02:17]} Na5 {[%emt 0:03:23]} 22. Qe2 {[%emt 0:00:49]} Nc4 {[%emt 0:01:09]} 23. Qg4 {[%emt 0:00:28]} Kf8 {[%emt 0:05:22]} 24. Bc1 {[%emt 0:04:15]} Qa4 {[%emt 0:02:27]} 25. Rb3 {[%emt 0:00:43]} Kg8 {[%emt 0:18:21]} 26. f4 {[%emt 0:00:22]} Na5 {[%emt 0:05:37]} 27. Rg3 {[%emt 0:01:10]} Bf8 {[%emt 0:01:06]} 28. f5 {[%emt 0:00:12]} exf5 {[%emt 0:02:32]} 29. Qxf5 {[%emt 0:10:33]} Qxd4+ {[%emt 0:01:36]} 30. Be3 {[%emt 0:00:18]} Qe4 {[%emt 0:00:37]} 31. Qf2 {[%emt 0:00:13]} Nc4 {[%emt 0:02:06]} 32. Ng4 {[%emt 0:00:34]} Kh7 {[%emt 0:06:03]} 33. Bxh6 {[%emt 0:00:56]} Bc5 {[%emt 0:02:39]} 34. Be3 {[%emt 0:01:47]} Nxe3 {[%emt 0:00:58]} 35. Nxe3 {[%emt 0:01:46]} Kg8 {[%emt 0:00:50]} 36. Rf3 {[%emt 0:05:29]} Qxe5 {[%emt 0:01:29]} 37. g4 {[%emt 0:00:21]} Re7 {[%emt 0:01:02]} 38. Re1 {[%emt 0:00:17]} Qe4 {[%emt 0:01:14]} 39. Kf1 {[%emt 0:00:44]} Bxe3 {[%emt 0:01:52]} 40. Rexe3 {[%emt 0:00:31]} Qc4+ {[%emt 0:00:17]} 41. Ke1 {[%emt 0:30:56]} Qc1+ {[%emt 0:30:27]} 42. Ke2 {[%emt 0:00:13]} Rc7 {[%emt 0:04:02]} 43. Qe1 {[%emt 0:00:53]} Qb2+ {[%emt 0:00:10]} 0-1